bitfinex-derivatives/quotes_BNBF0:USTF0_20250521
["timestamp","ask_amount","ask_price","bid_price","bid_amount"]
[1747832912264,2.27818246,653.47,652.66,0.60679649]
[1747832912464,2.27818246,653.47,652.67,0.60679649]
[1747832912670,2.27818246,653.47,652.68,0.60679649]
[1747832912865,2.27818246,653.47,652.69,0.60679649]
[1747832913070,2.27818246,653.42,652.7,0.60679649]
[1747832913263,2.27818246,653.42,652.71,0.60679649]
[1747832913463,2.27818246,653.42,652.72,0.60679649]
[1747832913670,2.27818246,653.42,652.73,0.60679649]
[1747832913870,2.27818246,653.42,652.74,0.60679649]
[1747832914063,2.27818246,653.42,652.75,0.60678297]
[1747832914268,2.27818246,653.42,652.76,0.30617016]
[1747832915770,2.27818246,653.52,652.77,0.30617016]
[1747832916873,2.27818246,653.52,652.78,0.60679232]
[1747832917072,2.27818246,653.52,652.79,0.60679232]
[1747832917373,2.27818246,653.52,652.8,0.91296248]
[1747832917573,2.27818246,653.52,652.8,0.30617016]
[1747832919169,2.27818246,653.52,652.18,0.24942081]
[1747832919170,2.27818246,653.47,652.55,0.12434273]
[1747832919374,2.27818246,653.47,652.56,0.6067505]
[1747832919572,2.27818246,653.47,652.57,1.72615356]
[1747832919771,2.27818246,653.47,652.58,0.6067505]
[1747832919974,2.27818246,653.47,652.59,1.72615356]
[1747832920268,2.27818246,653.47,652.6,0.6067505]
[1747832920571,2.27818246,653.47,652.61,0.6067505]
[1747832920772,2.27818246,653.47,652.62,0.6067505]
[1747832920968,2.27818246,653.47,652.63,0.6067505]
[1747832921272,2.27818246,653.47,652.64,0.6067505]
[1747832921473,2.27818246,653.47,652.65,0.6067505]
[1747832921673,2.27818246,653.47,652.66,0.6067505]
[1747832921870,2.27818246,653.47,652.67,0.6067505]
[1747832922071,2.27818246,653.55,652.68,0.6067505]
[1747832922274,2.27818246,653.55,652.69,0.6067505]
[1747832922475,2.27818246,653.55,652.67,0.30617016]
[1747832923277,2.27818246,653.55,652.68,0.30617016]
[1747832925082,2.27818246,653.53,652.69,0.30617016]
[1747832925781,2.27818246,653.53,652.7,0.30617016]
[1747832926983,2.27818246,653.54,652.47,0.30617016]
[1747832927184,2.27818246,653.54,652.48,1.72517641]
[1747832927382,2.27818246,653.54,652.49,0.60626361]
[1747832927580,2.27818246,653.54,652.5,0.60626361]
[1747832927780,2.27818246,653.54,652.51,1.72517641]
[1747832927981,2.27818246,653.54,652.52,0.60626361]
[1747832928182,2.27818246,653.54,652.53,1.72517641]
[1747832928384,2.27818246,653.54,652.54,0.60626361]
[1747832928578,2.27818246,653.54,652.53,1.1189128]
[1747832928778,2.27818246,653.54,652.54,0.60612148]
[1747832929077,2.27818246,653.54,652.55,1.72503428]
[1747832929281,2.27818246,653.54,652.56,0.60612148]
[1747832929477,2.27818246,653.51,652.57,0.60612148]
[1747832930384,0.26650227,653.58,652.57,0.60612148]
[1747832930584,0.26650227,653.58,652.58,0.91237196]
[1747832930785,0.26650227,653.58,652.59,0.60612148]
[1747832930982,0.26650227,653.58,652.6,0.60612148]
[1747832931184,0.26650227,653.58,652.61,0.60612148]
[1747832931382,0.26650227,653.58,652.62,0.60612148]
[1747832931587,0.26650227,653.58,652.63,0.60612148]
[1747832931887,0.26650227,653.58,652.64,0.60612148]
[1747832932188,0.26650227,653.58,652.65,0.60612148]
[1747832932382,0.26650227,653.58,652.58,0.30625048]
[1747832932586,0.26650227,653.58,652.65,0.30625048]
[1747832932587,2.27496043,653.49,652.65,0.30625048]
[1747832933682,2.27496043,653.49,652.48,0.30625048]
[1747832935896,2.27496043,653.4,652.51,0.12411351]
[1747832937293,2.27496043,653.4,652.52,0.30625048]
[1747832939192,2.27496043,653.39,652.53,0.30625048]
[1747832940493,2.27496043,653.39,652.06,0.26653187]
[1747832940494,0.26653187,653.58,652.06,0.26653187]
[1747832942189,0.26660027,653.6,652.06,0.26660027]
[1747832942392,0.26660027,653.6,646.77,0.30624916]
[1747832943093,0.26658802,658.43,646.78,0.26658802]
[1747832943591,0.9874,656.76,651.05,0.48641073]
[1747832943793,0.9874,654.86,651.05,0.48641073]
[1747832945194,0.26653901,654.85,651.05,0.48641073]
[1747832945494,0.26653901,654.85,652.51,0.12420148]
[1747832945495,2.2749538,653.42,652.51,0.12420148]
[1747832946798,2.2749538,653.42,652.52,0.30624916]
[1747832948295,2.2749538,653.47,652.53,0.30624916]
[1747832949696,2.2749538,653.47,652.54,0.30624916]
[1747832951890,2.2749538,653.98,652.64,0.12420148]
[1747832952195,0.26646554,653.9,652.64,0.12420148]
[1747832952496,2.2749538,653.98,652.64,0.12420148]
[1747832953197,2.2749538,653.98,652.65,0.30624916]
[1747832953496,0.2664074,653.97,652.65,0.30624916]
[1747832953796,2.2749538,653.98,652.65,0.30624916]
[1747832954196,0.26640536,653.96,652.65,0.30624916]
[1747832954795,2.2749538,653.8,652.78,0.12420148]
[1747832955997,2.2749538,653.8,652.79,0.30624916]
[1747832957693,2.2749538,653.83,652.8,0.43045064]
[1747832959004,2.2749538,653.83,652.81,0.30624916]
[1747832960602,2.2749538,653.82,652.82,0.30624916]
[1747832961103,2.54138058,653.82,652.82,0.30624916]
[1747832961803,2.54138058,653.82,652.83,0.30624916]
[1747832962803,2.2749538,653.82,652.83,0.30624916]
[1747832963301,2.2749538,653.71,652.84,0.30624916]
[1747832965404,2.2749538,653.71,652.85,0.30624916]
[1747832966810,2.2749538,653.72,652.86,0.30624916]
[1747832968010,2.2749538,653.72,652.87,0.30624916]
[1747832969612,0.26643698,653.82,652.88,0.30624916]
[1747832969613,2.2749538,653.73,652.88,0.30624916]
[1747832970814,2.2749538,653.73,652.89,0.30624916]
[1747832972218,2.2749538,653.73,652.9,0.30624916]
[1747832973218,2.2749538,653.73,652.91,0.30624916]
[1747832974822,2.2749538,653.82,652.92,0.30624916]
[1747832975517,2.2749538,653.82,652.93,0.30624916]
[1747832977428,2.2749538,653.82,652.66,0.12420148]
[1747832978728,2.2749538,653.82,652.67,0.30613249]
[1747832980729,2.2749538,653.82,652.68,0.30613249]
[1747832982131,2.2749538,653.82,652.69,0.30613249]
[1747832984034,2.2749538,653.78,652.7,0.30613249]
[1747832985434,2.2749538,653.78,652.71,0.30613249]
[1747832986331,2.2749538,653.78,652.72,0.60464105]
[1747832986534,2.2749538,653.78,652.73,0.60464105]
[1747832986934,2.2749538,653.78,652.74,0.60464105]
[1747832987129,2.2749538,653.78,652.75,0.60464105]
[1747832987434,2.2749538,653.77,652.76,0.60468941]
[1747832987629,2.2749538,653.77,652.77,0.60468941]
[1747832987834,2.2749538,653.77,652.78,0.60468941]
[1747832988028,2.2749538,653.77,652.79,0.60468941]
[1747832988232,2.2749538,653.77,652.8,0.60468941]
[1747832988433,2.2749538,653.77,652.81,0.9108219]
[1747832988632,2.2749538,653.77,652.82,0.60468941]
[1747832989838,0.2664227,653.85,652.83,0.30613249]
[1747832990037,0.2664227,653.85,652.84,0.60468941]
[1747832990238,2.2749538,653.87,652.84,0.60468941]
[1747832990439,2.2749538,653.87,652.85,1.11634999]
[1747832990638,2.2749538,653.87,652.86,0.60468941]
[1747832991132,2.2749538,653.87,652.87,0.60468941]
[1747832991333,2.2749538,653.87,652.88,0.60470693]
[1747832991534,2.2749538,653.87,652.89,0.60470693]
[1747832991833,2.2749538,653.87,652.9,0.60470693]
[1747832992032,2.2749538,653.87,652.91,0.60470693]
[1747832992237,2.2749538,653.87,652.88,0.30613249]
[1747832993035,2.2749538,653.87,652.47,0.16584683]
[1747832993036,2.2749538,653.97,652.89,2.02543085]
[1747832993239,2.2749538,653.97,652.9,0.60465341]
[1747832993432,2.2749538,653.97,652.91,0.60465341]
[1747832993637,2.2749538,653.97,652.92,0.60462471]
[1747832993832,2.2749538,653.97,652.93,0.60462471]
[1747832994037,2.2749538,653.97,652.94,0.60462471]
[1747832994234,2.2749538,653.97,652.95,0.60462471]
[1747832994438,2.2749538,653.97,652.96,0.60462471]
[1747832994640,2.2749538,653.97,652.97,0.9107572]
[1747832994834,2.2749538,653.97,652.98,0.60462471]
[1747832995038,2.2749538,653.97,652.99,0.60462471]
[1747832995340,2.2749538,653.97,653.0,0.60462471]
[1747832995538,2.2749538,653.97,653.01,0.60462471]
[1747832995740,2.2749538,653.97,652.97,0.30613249]
[1747832995941,2.2749538,653.98,653.0,0.30613249]
[1747832996742,2.2749538,653.98,653.01,0.30613249]
[1747832998247,2.2749538,653.98,653.02,0.60472355]
[1747832998445,2.2749538,653.98,653.03,0.60472355]
[1747832998645,2.2749538,653.98,653.04,0.60472355]
[1747832998844,2.2749538,653.98,653.01,0.30613249]
[1747832999047,2.2749538,653.98,653.02,0.60471542]
[1747832999248,2.2749538,654.31,653.04,0.30613249]
[1747832999448,2.2749538,654.31,653.05,0.60471542]
[1747832999648,2.2749538,654.31,653.04,0.30613249]
[1747832999949,2.2749538,654.31,653.05,0.60473173]
[1747833000248,0.2663391,654.3,653.04,0.30613249]
[1747833000449,0.2663391,654.3,653.05,0.60473173]
[1747833000649,0.2663391,654.3,653.06,0.91086422]
[1747833000845,0.2663391,654.3,653.06,0.30613249]
[1747833001851,2.2749538,654.31,653.06,0.30613249]
[1747833002153,0.2663391,654.29,653.06,0.30613249]
[1747833002451,0.2663391,654.29,653.07,0.30613249]
[1747833003752,0.2663391,654.29,653.08,0.30613249]
[1747833005653,0.2663391,654.29,653.09,0.30613249]
[1747833007053,0.2663391,654.29,652.76,0.12420148]
[1747833007251,0.2663391,654.29,652.77,0.60523798]
[1747833007447,0.2663391,654.29,652.78,0.60523798]
[1747833007647,0.2663391,654.29,652.79,0.60523798]
[1747833007851,0.2663391,654.29,652.8,1.11771358]
[1747833008048,0.2663391,654.29,652.81,0.60523798]
[1747833008553,0.2663391,654.29,652.82,1.11771358]
[1747833008754,0.2663391,654.29,652.83,0.60523798]
[1747833008954,2.2749538,653.83,652.83,0.60523798]
[1747833009151,2.2749538,653.83,652.84,1.11771358]
[1747833009351,2.2749538,653.83,652.85,0.60523798]
[1747833009555,2.2749538,653.83,652.86,1.11771358]
[1747833009755,2.2749538,653.83,652.87,0.60523798]
[1747833010152,2.2749538,653.83,652.88,0.91187352]
[1747833010356,2.2749538,653.83,652.89,0.60577686]
[1747833011758,2.2749538,653.76,652.9,0.30609666]
[1747833012056,2.2749538,653.76,652.91,0.60582357]
[1747833012256,2.2749538,653.76,652.92,0.60582357]
[1747833012555,2.2749538,653.76,652.93,0.60582357]
[1747833012757,2.2749538,653.76,652.94,0.30609666]
[1747833014656,2.2749538,653.76,652.75,0.12420148]
[1747833014657,2.2749538,653.79,652.95,0.30609666]
[1747833015655,2.2749538,653.79,652.96,0.30609666]
[1747833017161,2.2749538,653.81,652.97,0.30609666]
[1747833018562,2.2749538,653.81,652.98,0.30609666]
[1747833020460,2.2749538,653.81,652.75,0.30609666]
[1747833020660,2.2749538,653.81,652.76,0.60589207]
[1747833020858,2.2749538,653.81,652.77,1.72472617]
[1747833021060,2.2749538,653.81,652.78,0.60589207]
[1747833021562,2.2749538,653.81,652.79,1.1188341]
[1747833021764,2.2749538,653.81,652.8,0.91198873]
[1747833021962,2.2749538,653.81,652.81,0.60589207]
[1747833022358,2.2749538,653.81,652.82,1.1188341]
[1747833022563,2.2749538,653.81,652.83,0.60589207]
[1747833023063,2.2749538,653.81,652.84,0.60589207]
[1747833023259,2.2749538,653.81,652.85,0.60593445]
[1747833023459,2.2749538,653.81,652.86,0.60593445]
[1747833023662,2.2749538,653.81,652.87,0.60593445]
[1747833023957,2.2749538,653.67,652.88,0.60593445]
[1747833024160,2.2749538,653.67,652.89,0.60593445]
[1747833024362,2.2749538,653.67,652.9,0.60593445]
[1747833024561,2.2749538,653.67,652.91,0.60593445]
[1747833024764,2.2749538,653.67,652.92,0.60593445]
[1747833024961,2.2749538,653.67,652.93,0.91203111]
[1747833025160,2.2749538,653.67,652.93,0.30609666]
[1747833027067,2.2749538,653.66,652.94,0.30609666]
[1747833027969,2.2749538,653.66,652.95,0.30609666]
[1747833029069,2.2749538,653.67,652.8,0.30609666]
[1747833029371,2.2749538,653.67,652.81,0.60609443]
[1747833029568,2.2749538,653.67,652.82,1.72559445]
[1747833029768,2.2749538,653.67,652.83,0.60609443]
[1747833030068,2.2749538,653.67,652.84,0.60609443]
[1747833030269,2.2749538,653.67,652.85,0.60609443]
[1747833030466,2.2749538,653.67,652.86,0.60609443]
[1747833030769,2.2749538,653.67,652.87,0.60609443]
[1747833030965,2.2749538,653.67,652.88,0.60609443]
[1747833032874,2.2749538,653.61,652.89,0.30609666]
[1747833033168,2.2749538,653.61,652.9,0.60609443]
[1747833034374,2.2749538,653.61,652.91,0.30609666]
[1747833034571,2.2749538,653.61,652.92,0.60609443]
[1747833034871,2.2749538,653.61,652.93,0.60609443]
[1747833035071,2.2749538,653.61,652.91,0.30609666]
[1747833035271,2.2749538,653.61,652.92,0.60607027]
[1747833035471,2.2749538,653.61,652.93,0.60607027]
[1747833035673,2.2749538,653.61,652.91,0.30609666]
[1747833035974,2.2749538,653.61,652.94,0.30609666]
[1747833037173,2.2749538,653.61,652.82,0.30609666]
[1747833037472,2.2749538,653.61,652.83,0.6060787]
[1747833037673,2.2749538,653.61,652.84,0.6060787]
[1747833037866,2.2749538,653.61,652.85,0.6060787]
[1747833038072,2.2749538,653.61,652.86,0.6060787]
[1747833038274,2.2749538,653.61,652.87,0.6060787]
[1747833038474,2.2749538,653.61,652.88,0.6060787]
[1747833038673,2.2749538,653.61,652.89,0.6060787]
[1747833038875,2.2749538,653.61,652.9,0.6060787]
[1747833039073,2.2749538,653.61,652.91,0.6060787]
[1747833039375,2.2749538,653.59,652.92,0.6060787]
[1747833039571,2.2749538,653.59,652.93,0.6060787]
[1747833039869,2.2749538,653.59,652.94,0.60609197]
[1747833040071,2.2749538,653.59,652.87,0.30609666]
[1747833040273,2.2749538,653.59,652.88,0.30609666]
[1747833040975,2.2749538,653.59,652.89,0.60608364]
[1747833041272,2.2749538,653.59,652.9,0.60608364]
[1747833041473,2.2749538,653.59,652.91,0.60608364]
[1747833041666,2.2749538,653.59,652.92,0.60608364]
[1747833041872,2.2749538,653.59,652.88,0.30609666]
[1747833041873,2.2749538,653.6,652.93,0.60608364]
[1747833042072,2.2749538,653.6,652.91,0.30609666]
[1747833042269,2.2749538,653.6,652.92,0.60609016]
[1747833042472,2.2749538,653.6,652.93,0.60609555]
[1747833042674,2.2749538,653.6,652.91,0.30609666]
[1747833042874,2.2749538,653.6,652.94,0.30609666]
[1747833044674,2.2749538,653.66,652.95,0.30609666]
[1747833045575,2.2749538,653.66,652.96,0.30609666]
[1747833047075,2.2749538,653.66,652.8,0.30609666]
[1747833047276,2.2749538,653.66,652.81,0.60616253]
[1747833047477,2.2749538,653.66,652.82,0.60616253]
[1747833047669,2.2749538,653.66,652.83,0.60616253]
[1747833047871,2.2749538,653.66,652.84,0.60616253]
[1747833048074,2.2749538,653.66,652.85,0.60618298]
[1747833048275,2.2749538,653.66,652.86,0.60618298]
[1747833048572,2.2749538,653.66,652.87,0.91227964]
[1747833048776,2.2749538,653.66,652.88,0.60618298]
[1747833048973,2.2749538,653.66,652.89,0.60618298]
[1747833049178,2.2749538,653.66,652.9,0.60618298]
[1747833049381,2.2749538,653.66,652.87,0.30609666]
[1747833049677,2.2749538,653.66,652.88,0.60616238]
[1747833049873,2.2749538,653.67,652.91,0.30609666]
[1747833050978,2.2749538,653.67,652.92,0.30609666]
[1747833052682,2.2749538,653.67,652.93,0.30609666]
[1747833053883,2.2749538,653.67,652.45,0.24913753]
[1747833054079,0.26643596,653.81,652.46,0.91232249]
[1747833054384,0.26643596,653.81,652.47,0.60618013]
[1747833054584,0.26643596,653.81,652.48,0.60618013]
[1747833054784,0.26643596,653.81,652.49,0.60618013]
[1747833054985,0.26643596,653.81,652.5,0.60618013]
[1747833055188,0.26643596,653.81,652.51,0.60618013]
[1747833055485,0.26643596,653.81,652.52,0.60618013]
[1747833055683,0.26643596,653.81,652.53,0.60618013]
[1747833055885,2.27534971,653.66,652.75,0.1242391]
[1747833056086,2.27534971,653.66,652.76,0.60624859]
[1747833056286,2.27534971,653.66,652.77,0.60624859]
[1747833056486,2.27534971,653.66,652.78,0.60624859]
[1747833056688,2.27534971,653.66,652.79,0.60624859]
[1747833056886,2.27534971,653.66,652.8,0.60624859]
[1747833057087,2.27534971,653.66,652.81,0.60624859]
[1747833057282,2.27534971,653.66,652.82,0.60624859]
[1747833057585,2.27534971,653.66,652.83,0.60624859]
[1747833057785,2.27534971,653.66,652.84,0.30614236]
[1747833058390,2.27534971,653.66,652.85,0.60629072]
[1747833058587,2.27534971,653.66,652.86,0.60629072]
[1747833058785,2.27534971,653.66,652.87,0.60629072]
[1747833058990,2.27534971,653.66,652.88,0.60629072]
[1747833059289,2.27534971,653.66,652.89,0.60629072]
[1747833059586,2.27534971,653.7,652.9,0.60629072]
[1747833059792,2.27534971,653.7,652.91,0.60646823]
[1747833059990,2.27534971,653.7,652.92,0.60646823]
[1747833060188,2.27534971,653.7,652.89,0.30614236]
[1747833060392,2.27534971,653.7,652.9,0.60646937]
[1747833060589,2.27534971,653.7,652.91,0.60646937]
[1747833060791,2.27534971,653.7,652.89,0.30614236]
[1747833061094,2.27534971,653.7,652.9,0.91261251]
[1747833061297,2.27534971,653.7,652.91,0.60646871]
[1747833061497,2.27534971,653.7,652.9,0.30614236]
[1747833061694,2.27534971,653.7,652.91,0.60646871]
[1747833061895,2.27534971,653.7,652.92,0.60646871]
[1747833062096,2.27534971,653.7,652.9,0.30614236]
[1747833062393,2.27534971,653.67,652.93,0.30614236]
[1747833063299,2.27534971,653.67,652.94,0.60691075]
[1747833063499,2.27534971,653.67,652.93,0.30614236]
[1747833063798,2.27534971,653.67,652.94,0.30614236]
[1747833064500,2.27534971,653.67,652.95,0.60712376]
[1747833064801,2.27534971,653.67,652.94,0.30614236]
[1747833064997,2.27534971,653.67,652.95,0.60712417]
[1747833065199,2.27534971,653.64,652.96,0.30614236]
[1747833065498,2.27534971,653.64,652.97,0.60741211]
[1747833065700,2.27534971,653.64,652.96,0.30614236]
[1747833065902,2.27534971,653.64,652.97,0.60741258]
[1747833066096,2.27534971,653.64,652.96,0.30614236]
[1747833066302,2.27534971,653.64,652.97,0.60741258]
[1747833066503,2.27534971,653.64,652.97,0.30614236]
[1747833068205,2.27534971,653.52,652.98,0.91367183]
[1747833068399,2.27534971,653.52,652.99,0.60752947]
[1747833068599,2.27534971,653.52,653.0,0.60752947]
[1747833068797,2.27534971,653.52,653.01,0.60752947]
[1747833069001,2.27534971,653.52,652.98,0.30614236]
[1747833069198,2.27534971,653.52,652.99,0.9137131]
[1747833069403,2.27534971,653.52,653.0,0.60757074]
[1747833071302,2.27534971,653.55,653.01,0.30614236]
[1747833072602,2.27534971,653.55,653.02,0.30614236]
[1747833074400,2.27534971,653.6,653.03,0.30614236]
[1747833075606,2.27534971,653.6,653.04,0.30614236]
[1747833076901,2.27534971,653.6,653.05,0.30614236]
[1747833077102,2.27534971,653.57,653.05,0.30614236]
[1747833079110,2.27534971,653.57,653.06,0.30614236]
[1747833080205,2.27534971,653.57,653.07,0.30614236]
[1747833080410,2.27534971,653.58,653.07,0.30614236]
[1747833081410,2.27534971,653.58,652.82,0.1242391]
[1747833081607,2.27534971,653.58,652.83,0.60767697]
[1747833081812,2.27534971,653.58,652.84,0.60767553]
[1747833082111,2.27534971,653.58,652.85,0.60767553]
[1747833082312,2.27534971,653.58,652.86,0.60767553]
[1747833082511,2.27534971,653.58,652.87,0.60767553]
[1747833082708,2.27534971,653.58,652.88,0.60767553]
[1747833082908,2.27534971,653.58,652.89,0.60767553]
[1747833083110,2.27534971,653.66,652.9,0.60767553]
[1747833083311,2.27534971,653.66,652.91,0.60767553]
[1747833083609,2.27534971,653.66,652.92,0.60767553]
[1747833083807,2.27534971,653.66,652.93,0.60767553]
[1747833084010,2.27534971,653.66,652.94,0.60767553]
[1747833084212,2.27534971,653.66,652.95,0.60767553]
[1747833084408,2.27534971,653.66,652.96,0.91381824]
[1747833084613,2.27534971,653.66,652.97,0.60767553]
[1747833085813,2.27534971,653.64,652.98,0.30614271]
[1747833087916,2.27534971,653.64,652.99,0.30614271]
[1747833089218,2.27534971,653.66,653.0,0.30614271]
[1747833090821,2.27534971,653.66,653.01,0.30614271]
[1747833092723,2.27534971,653.58,653.02,0.30614271]
[1747833093623,2.27534971,653.58,653.03,0.30614271]
[1747833095225,2.27534971,653.57,653.04,0.30614271]
[1747833096725,2.27534971,653.57,653.05,0.30614271]
[1747833099427,2.27534971,653.54,653.06,0.30614271]
[1747833100630,2.27534971,653.54,652.83,0.1242391]
[1747833100831,2.27534971,653.54,652.84,0.60772771]
[1747833101131,2.27534971,653.54,652.85,0.60772771]
[1747833101324,2.27534971,653.54,652.86,0.60772771]
[1747833101529,2.27534971,653.54,652.87,0.60772771]
[1747833101725,2.27534971,653.54,652.88,0.60772771]
[1747833101924,2.27534971,653.54,652.89,0.60772771]
[1747833102128,2.27534971,653.54,652.9,0.60772771]
[1747833102330,0.26642066,653.81,652.91,0.60772771]
[1747833102530,0.26642066,653.81,652.29,0.26642066]
[1747833102725,0.26642066,653.81,652.3,0.60774409]
[1747833103029,0.26642066,653.81,652.31,0.60774409]
[1747833103230,0.26642066,653.81,652.32,0.60774409]
[1747833103430,0.26642066,653.81,652.33,0.60774409]
[1747833103630,0.26642066,653.81,652.34,0.60774409]
[1747833103825,0.26642066,653.81,652.35,0.60774409]
[1747833104030,0.26642066,653.81,652.13,0.265992]
[1747833105330,0.26584875,659.96,652.42,0.60754056]
[1747833105530,0.26584875,659.96,652.43,0.60754056]
[1747833105727,0.26584875,659.96,652.44,0.60754056]
[1747833105930,0.26584875,659.96,652.45,0.60754056]
[1747833106126,0.26584875,659.96,652.46,0.60754056]
[1747833106331,0.26584875,659.96,652.47,0.60754056]
[1747833106529,0.26584875,659.96,652.48,0.60754056]
[1747833106732,0.26584875,659.96,652.49,0.60754056]
[1747833106929,0.26584875,659.96,652.5,0.60754056]
[1747833107229,0.26584875,659.96,652.51,0.60754056]
[1747833107429,0.98806369,655.73,652.52,0.60754056]
[1747833107631,2.27817827,653.62,652.57,0.12446665]
[1747833107831,2.27817827,653.62,652.58,0.60754056]
[1747833108032,2.27817827,653.62,652.59,0.60754056]
[1747833108232,2.27817827,653.62,652.6,0.60707097]
[1747833108434,2.27817827,653.62,652.61,0.60707097]
[1747833108636,2.27817827,653.62,652.62,0.91328808]
[1747833108831,2.27817827,653.62,652.63,0.60707097]
[1747833109037,2.27817827,653.62,652.64,0.60707097]
[1747833109239,2.27817827,653.62,652.65,0.60707097]
[1747833109434,2.27817827,653.62,652.66,0.60707097]
[1747833109639,7.59392758,655.38,652.67,0.60707097]
[1747833109840,0.98806369,655.73,652.68,0.60707097]
[1747833110041,0.98806369,655.73,652.69,0.60707097]
[1747833110241,2.27547717,653.58,652.7,0.60707097]
[1747833110441,2.27547717,653.58,652.71,0.60707097]
[1747833110640,2.27547717,653.58,652.72,0.60707097]
[1747833110837,2.27547717,653.58,652.73,0.60707097]
[1747833111044,2.27547717,653.58,652.74,0.60707097]
[1747833111239,0.26646554,653.65,652.13,0.26646554]
[1747833111542,0.26646554,653.65,652.14,0.60659842]
[1747833111744,0.26646554,653.65,652.15,0.60659842]
[1747833111940,0.26646554,653.65,652.16,0.6065985]
[1747833112138,0.26646554,653.65,652.17,0.6065985]
[1747833112340,0.26646554,653.65,652.18,0.6065985]
[1747833112537,0.26646554,653.65,652.19,0.6065985]
[1747833112737,0.26646554,653.65,652.2,0.6065985]
[1747833113037,0.98806369,655.52,652.21,0.6065985]
[1747833113240,0.26632076,653.65,652.22,0.6065985]
[1747833113440,0.26632076,653.65,652.23,0.6065985]
[1747833113637,0.98806369,655.63,652.13,0.26632076]
[1747833113837,0.98806369,655.63,652.14,0.60636786]
[1747833114037,0.98806369,655.63,652.13,0.26632076]
[1747833114038,0.98806369,655.63,652.15,0.60636786]
[1747833114242,0.26647268,655.62,652.16,0.60636786]
[1747833114440,0.26647268,655.62,652.13,0.26632076]
[1747833114441,0.26647268,655.62,652.17,0.60636786]
[1747833114638,0.26647268,655.62,652.18,0.60636786]
[1747833114841,0.26647268,655.62,652.19,0.60636786]
[1747833115141,0.26647268,655.62,652.2,0.60636786]
[1747833115341,0.26647268,655.62,652.21,0.60636786]
[1747833115542,0.26647268,655.62,652.22,0.60636786]
[1747833115842,0.26647268,655.62,652.23,0.91260924]
[1747833116042,0.98806369,655.65,652.24,0.60636786]
[1747833116241,0.98806369,655.65,652.25,0.60636786]
[1747833116442,0.98806369,655.65,652.26,0.60636786]
[1747833116641,0.98806369,655.65,652.27,0.60636786]
[1747833116842,0.98806369,655.65,652.28,0.60636786]
[1747833117044,0.98806369,655.65,652.29,0.60636786]
[1747833117244,0.26630038,655.64,652.3,0.60636786]
[1747833117443,0.26630038,655.64,652.31,0.60636786]
[1747833117644,0.26630038,655.64,652.32,0.60636786]
[1747833117947,0.98806369,655.48,652.33,0.60636786]
[1747833118150,0.98806369,655.48,652.34,0.60636786]
[1747833118349,0.98806369,655.48,652.35,0.60636786]
[1747833118541,0.98806369,655.48,652.36,0.60636786]
[1747833118746,0.98806369,655.48,652.37,0.60636786]
[1747833118944,0.98806369,655.48,652.38,0.60636786]
[1747833119147,2.27279115,653.43,652.39,0.60636786]
[1747833119348,2.27279115,653.43,652.4,0.60636786]
[1747833119548,2.27279115,653.43,652.41,0.60636786]
[1747833119750,2.27279115,653.43,652.42,0.60636786]
[1747833119950,5.30317935,654.53,652.43,0.60636786]
[1747833120252,7.5759705,655.11,652.13,0.26630038]
[1747833122651,0.98567687,654.89,652.49,0.30622702]
[1747833122854,0.98567687,654.89,652.5,0.60577538]
[1747833123054,0.98567687,654.89,652.49,0.30622702]
[1747833123255,0.98567687,654.89,652.5,0.60575593]
[1747833123449,0.98567687,654.89,652.49,0.30622702]
[1747833123650,0.98567687,654.89,652.5,0.60574294]
[1747833123851,2.27205977,653.32,652.51,0.30622702]
[1747833124758,2.27205977,653.32,652.35,0.1241457]
[1747833124958,2.27205977,653.32,652.36,0.60571506]
[1747833125154,2.27205977,653.32,652.37,0.60571506]
[1747833125354,2.27205977,653.32,652.38,0.60571506]
[1747833125553,2.27205977,653.32,652.35,0.1241457]
[1747833126459,2.27205977,653.32,652.36,0.605706]
[1747833126660,2.27205977,653.32,652.37,0.605706]
[1747833126860,2.27205977,653.3,652.38,0.605706]
[1747833127059,2.27205977,653.3,652.39,0.605706]
[1747833127261,2.27205977,653.3,652.4,0.605706]
[1747833127458,2.27205977,653.3,652.41,0.605706]
[1747833127661,2.27205977,653.3,652.42,0.605706]
[1747833127962,2.27205977,653.3,652.43,0.605706]
[1747833128156,2.27205977,653.3,652.44,0.605706]
[1747833128362,2.27205977,653.3,652.45,0.605706]
[1747833128559,2.27205977,653.3,652.36,0.30622702]
[1747833128560,2.27205977,653.3,652.46,0.605706]
[1747833128860,2.27205977,653.46,652.49,0.1241457]
[1747833129061,2.27205977,653.46,652.5,0.605706]
[1747833129259,2.27205977,653.46,652.51,0.605706]
[1747833129463,2.27205977,653.46,652.52,0.605706]
[1747833129668,2.27205977,653.46,652.53,0.605706]
[1747833129863,2.27205977,653.46,652.54,0.605706]
[1747833130058,2.27205977,653.46,652.55,0.605706]
[1747833130260,2.27205977,653.46,652.56,0.605706]
[1747833130461,2.27205977,653.46,652.57,0.605706]
[1747833130658,2.27205977,653.46,652.58,0.605706]
[1747833130866,2.27205977,653.46,652.59,0.605706]
[1747833131063,2.27205977,653.46,652.6,0.605706]
[1747833131258,2.27205977,653.46,652.61,0.91193302]
[1747833131458,2.27205977,653.46,652.61,0.30622702]
[1747833132564,2.27205977,653.5,652.62,0.30622702]
[1747833133464,2.27205977,653.5,652.63,0.91185675]